bitfinex-derivatives/quotes_SOLF0:USTF0_20240815
["timestamp","ask_amount","ask_price","bid_price","bid_amount"]
[1723735220579,3.4329,145.65,145.61,10.91968434]
[1723735220580,7.42,145.72,145.64,49.5]
[1723735220780,2.4796,145.74,145.66,49.5]
[1723735221374,3.4328,145.65,145.64,49.5]
[1723735221783,3.4324,145.67,145.64,49.5]
[1723735221981,2.4796,145.74,145.64,49.5]
[1723735222187,2.4796,145.74,145.67,49.5]
[1723735222777,0.0452732,145.71,145.69,49.5]
[1723735223084,16.7997,145.82,145.76,0.37992945]
[1723735223386,3.4299,145.77,145.76,0.37992945]
[1723735225285,3.4318,145.69,145.67,56.84]
[1723735225684,63.757,145.81,145.67,56.84]
[1723735225890,3.432,145.68,145.67,49.5]
[1723735226188,7.34,145.74,145.64,49.5]
[1723735226588,7.34,145.74,145.62,49.5]
[1723735226785,10.77409044,145.74,145.62,49.5]
[1723735227090,3.4332,145.63,145.62,49.5]
[1723735227283,7.34,145.74,145.62,49.5]
[1723735227589,7.34,145.74,145.66,49.5]
[1723735227990,3.4324,145.67,145.66,49.5]
[1723735228881,0.04671488,145.71,145.66,49.5]
[1723735229484,3.4321,145.68,145.66,49.5]
[1723735229680,7.34,145.75,145.66,49.5]
[1723735229884,3.4322,145.67,145.66,49.5]
[1723735230791,7.34,145.75,145.66,49.5]
[1723735231293,3.4319,145.69,145.66,49.5]
[1723735231584,7.34,145.75,145.66,49.5]
[1723735231985,7.34,145.75,145.68,49.5]
[1723735232183,3.4316,145.7,145.68,49.5]
[1723735232394,0.04776391,145.72,145.69,0.04944933]
[1723735232786,3.4315,145.7,145.69,0.04944933]
[1723735232986,0.04776391,145.72,145.69,3.46024297]
[1723735233295,7.00508153,145.77,145.71,49.5]
[1723735233987,7.00508153,145.77,145.68,49.5]
[1723735234188,7.00508153,145.77,145.66,49.5]
[1723735234583,3.4321,145.68,145.66,49.5]
[1723735234781,0.04943961,145.74,145.71,0.04813423]
[1723735235187,3.431,145.72,145.71,0.04813423]
[1723735235692,3.4314,145.71,145.68,49.5]
[1723735235880,7.00508153,145.77,145.68,49.5]
[1723735236086,7.00508153,145.77,145.68,52.95607412]
[1723735236393,0.05047844,145.73,145.7,0.05094403]
[1723735236592,0.05047844,145.73,145.72,49.5]
[1723735236801,3.4305,145.75,145.72,49.5]
[1723735236988,8.5764,145.8,145.72,49.5]
[1723735237294,7.34,145.8,145.72,49.5]
[1723735238389,7.34,145.8,145.63,1.0081]
[1723735238589,7.34,145.8,145.67,49.5]
[1723735238784,3.4301,145.76,145.75,0.04673739]
[1723735239892,3.4315,145.71,145.67,49.5]
[1723735240089,0.04517788,145.77,145.67,49.5]
[1723735240795,0.04517788,145.77,145.7,49.5]
[1723735241095,0.04517788,145.77,145.74,0.04622466]
[1723735241286,7.34,145.8,145.74,0.04622466]
[1723735241492,3.4303,145.75,145.74,0.04622466]
[1723735241896,7.34,145.8,145.74,49.54622466]
[1723735242595,0.05248526,145.77,145.74,49.5]
[1723735243095,2.23027112,145.82,145.74,49.5]
[1723735243295,1.2504,145.82,145.74,49.5]
[1723735243795,1.2504,145.82,145.72,49.5]
[1723735243996,1.2504,145.82,145.74,0.04425255]
[1723735244186,3.4304,145.75,145.74,0.04425255]
[1723735245295,3.43,145.77,145.74,0.04425255]
[1723735245495,1.2504,145.82,145.74,0.04425255]
[1723735245793,3.47585036,145.76,145.74,0.04425255]
[1723735246194,3.4301,145.76,145.74,0.04425255]
[1723735246394,3.4303,145.75,145.74,0.04425255]
[1723735246794,0.04678878,145.76,145.74,0.04425255]
[1723735248194,3.47698878,145.76,145.74,0.04425255]
[1723735248495,0.04678878,145.76,145.74,49.54425255]
[1723735248689,0.04678878,145.76,145.74,52.97475255]
[1723735249499,0.04678878,145.76,145.74,49.54425255]
[1723735249889,8.188,145.84,145.74,99.04425255]
[1723735249890,1.3311,145.84,145.74,99.04425255]
[1723735250099,1.3311,145.84,145.77,49.5]
[1723735250300,6.8546,145.88,145.79,49.5]
[1723735250499,3.4287,145.83,145.79,52.9294]
[1723735250693,1.2858,145.89,145.79,49.5]
[1723735250892,1.2858,145.89,145.82,49.5]
[1723735251107,1.2858,145.89,145.83,7.0]
[1723735251496,3.4281,145.85,145.83,7.0]
[1723735251804,3.47177665,145.85,145.83,7.0]
[1723735251997,0.04367665,145.85,145.83,7.0]
[1723735252500,0.04367665,145.85,145.84,49.5]
[1723735252691,8.2028,145.95,145.75,0.9578]
[1723735252692,1.2858,145.95,145.86,49.5]
[1723735252998,3.4274,145.88,145.86,56.5]
[1723735253302,1.2858,145.95,145.86,56.5]
[1723735253600,3.4271,145.89,145.86,56.5]
[1723735253793,1.2858,145.95,145.87,7.0]
[1723735254392,1.2858,145.95,145.86,49.5]
[1723735254593,0.05201366,145.92,145.89,0.04531902]
[1723735254800,3.4268,145.9,145.89,0.04531902]
[1723735257403,2.47236371,145.9,145.89,0.04531902]
[1723735259197,3.4658858,145.9,145.78,6.98]
[1723735259397,0.05201366,145.92,145.75,49.5]
[1723735259398,6.917,145.88,145.75,49.5]
[1723735259700,8.1803,145.87,145.75,49.5]
[1723735260006,1.3252,145.87,145.78,49.5]
[1723735260200,1.3252,145.87,145.8,49.5]
[1723735260406,1.355,145.89,145.8,49.5]
[1723735260609,6.917,145.91,145.83,49.5]
[1723735261104,0.04934366,145.84,145.83,49.5]
[1723735261306,0.04934366,145.84,145.81,0.04342159]
[1723735261898,13.7715,145.89,145.78,3.4294]
[1723735262098,6.917,145.89,145.75,56.48]
[1723735262403,6.8546,145.88,145.77,49.5]
[1723735262707,2.6802,145.93,145.8,49.5]
[1723735262708,13.897,145.91,145.8,49.5]
[1723735262904,13.897,145.91,145.75,6.98]
[1723735262905,6.917,145.91,145.82,49.5]
[1723735263099,2.6802,145.93,145.85,49.5]
[1723735263303,1.2858,145.95,145.88,49.5]
[1723735263503,1.3588,146.03,145.9,49.5]
[1723735263697,2.06358537,146.02,145.9,49.5]
[1723735264000,0.71588537,146.01,145.9,49.5]
[1723735264200,1.3477,146.02,145.9,49.5]
[1723735264201,1.3477,146.02,145.95,49.5]
[1723735264408,3.4244,146.01,145.95,49.5]
[1723735264600,49.5,146.06,145.95,56.48]
[1723735265107,6.98,146.07,145.95,49.5]
[1723735265407,3.4248,145.99,145.95,6.98]
[1723735265613,49.5,146.05,145.9,49.5]
[1723735265803,56.417,146.05,145.92,56.48]
[1723735266000,3.36967533,146.04,145.92,49.5]
[1723735266212,49.5,146.03,145.9,56.48]
[1723735266401,3.4248,145.99,145.93,3.426]
[1723735266603,49.5,146.06,145.95,49.5]
[1723735267001,3.4247,145.99,145.95,49.5]
[1723735267200,49.5,146.06,145.95,49.5]
[1723735267403,0.71542452,146.05,145.9,56.48]
[1723735267606,49.5,146.03,145.9,59.9068]
[1723735267805,56.417,146.03,145.9,56.48]
[1723735267998,56.417,146.03,145.9,49.5]
[1723735267999,3.4262,145.93,145.9,49.5]
[1723735268200,49.5,146.01,145.95,0.04615606]
[1723735268408,0.04946867,145.98,145.95,0.04615606]
[1723735268809,3.4254,145.96,145.95,0.04615606]
[1723735270506,3.4259,145.94,145.93,49.5]
[1723735271208,0.04946867,145.98,145.93,49.5]
[1723735271404,0.04946867,145.98,145.95,49.5]
[1723735271611,3.47446867,145.98,145.95,49.5]
[1723735271814,0.04946867,145.98,145.95,49.5]
[1723735272307,0.04946867,145.98,145.93,49.5]
[1723735272609,49.5,146.03,145.94,0.04790773]
[1723735272814,3.4257,145.95,145.94,0.04790773]
[1723735273411,3.4274,145.88,145.85,49.5]
[1723735273608,56.417,145.98,145.83,12.25474571]
[1723735273913,3.4272,145.89,145.85,49.5]
[1723735274114,56.417,145.98,145.85,49.5]
[1723735274115,49.5,145.96,145.85,49.5]
[1723735274409,8.3313,145.95,145.85,49.5]
[1723735275004,1.3513,145.95,145.87,52.9274]
[1723735275215,1.3513,145.95,145.89,49.5]
[1723735275513,3.4265,145.92,145.89,49.5]
[1723735275709,1.3513,145.95,145.87,49.5]
[1723735275905,4.70702309,145.95,145.85,49.5]
[1723735276105,49.5,145.94,145.89,0.04945631]
[1723735276416,0.71629039,145.93,145.8,49.5]
[1723735276616,6.98,145.92,145.8,49.5]
[1723735276824,13.897,145.92,145.8,49.5]
[1723735277323,0.71649712,145.91,145.8,49.5]
[1723735277618,56.417,145.89,145.77,49.5]
[1723735277812,56.417,145.89,145.75,49.5]
[1723735277813,1.2891,145.88,145.75,49.5]
[1723735278014,49.5,145.86,145.75,49.5]
[1723735278318,8.2741,145.85,145.73,49.5]
[1723735278512,8.2741,145.85,145.7,49.5]
[1723735278513,49.5,145.84,145.7,49.5]
[1723735278712,6.917,145.83,145.7,49.5]
[1723735279116,56.3566,145.84,145.7,49.5]
[1723735279117,13.7745,145.82,145.7,49.5]
[1723735279515,13.7745,145.82,145.66,10.43343959]
[1723735279516,49.5,145.81,145.69,49.5]
[1723735280122,3.4312,145.72,145.69,49.5]
[1723735280419,6.98,145.77,145.69,49.5]
[1723735280621,3.4313,145.71,145.69,49.5]
[1723735280808,6.98,145.77,145.69,49.5]
[1723735281010,6.98,145.77,145.75,0.04548753]
[1723735281314,6.98,145.81,145.75,0.04548753]
[1723735281512,6.98,145.81,145.76,49.5]
[1723735281718,1.3257,145.84,145.76,49.5]
[1723735282214,1.3257,145.84,145.75,0.04548753]
[1723735282215,3.4292,145.8,145.79,49.5]
[1723735283118,3.429,145.81,145.79,49.5]
[1723735283322,6.917,145.85,145.79,49.5]
[1723735283721,3.4298,145.78,145.76,49.5]
[1723735284019,56.417,145.85,145.73,49.5]
[1723735284221,56.417,145.85,145.78,0.04606185]
[1723735284524,0.04531087,145.81,145.78,0.04606185]
[1723735284825,3.4294,145.79,145.78,0.04606185]
[1723735285625,1.2593,145.8,145.69,49.5]
[1723735285626,8.2393,145.8,145.69,49.5]
[1723735286117,1.3213,145.79,145.69,49.5]
[1723735286621,3.431,145.73,145.69,49.5]
[1723735286822,1.3213,145.79,145.71,49.5]
[1723735287220,3.431,145.72,145.69,49.5]
[1723735287421,1.3213,145.79,145.73,0.04664982]
[1723735287722,0.05184669,145.75,145.73,0.04664982]
[1723735287922,2.5306,145.74,145.73,0.04664982]
[1723735288122,2.5306,145.74,145.69,49.5]
[1723735288329,3.4307,145.74,145.69,52.9315]
[1723735288516,0.05184669,145.75,145.69,49.5]
[1723735288721,0.05184669,145.75,145.72,49.55064906]
[1723735288916,3.48234669,145.75,145.72,49.55064906]
[1723735289126,0.05184669,145.75,145.72,49.55064906]
[1723735289923,0.05184669,145.75,145.74,49.5]
[1723735290431,0.05184669,145.75,145.72,0.05064906]
[1723735290625,0.05184669,145.75,145.72,49.55064906]
[1723735290925,6.98,145.84,145.74,49.5]
[1723735291126,3.4292,145.8,145.77,49.5]
[1723735291525,8.2404,145.86,145.77,49.5]
[1723735291726,3.4286,145.83,145.82,49.5]
[1723735291930,1.3234,145.86,145.82,49.5]
[1723735292123,3.4281,145.85,145.82,49.5]
[1723735292322,1.3234,145.86,145.82,49.5]
[1723735292625,3.4284,145.84,145.82,49.5]
[1723735292822,9.6547,145.91,145.73,4.51802237]
[1723735293021,49.5,145.86,145.74,49.5]
[1723735293234,3.4294,145.79,145.74,52.9305]
[1723735293426,49.5,145.86,145.74,52.9305]
[1723735293623,3.4287,145.82,145.81,0.05042896]
[1723735294630,3.4302,145.76,145.72,49.5]
[1723735294831,49.55251598,145.84,145.72,49.5]
[1723735295026,3.43,145.77,145.72,52.9309]
[1723735295636,6.98,145.85,145.76,49.5]
[1723735295920,57.6644,145.89,145.76,49.5]
[1723735295921,64.6444,145.89,145.76,49.5]
[1723735296123,3.4288,145.82,145.76,49.5]
[1723735296321,64.6444,145.89,145.76,49.5]
[1723735296528,64.6444,145.89,145.76,52.93]
[1723735296733,64.6444,145.89,145.76,49.5]
[1723735297032,0.04332843,145.8,145.79,49.5]
[1723735297433,8.2274,145.89,145.79,49.5]
[1723735297633,3.4286,145.83,145.79,49.5]
[1723735297830,8.2274,145.89,145.79,49.5]
[1723735298232,0.04917097,145.81,145.79,49.5]
[1723735298531,8.2274,145.89,145.79,49.5]
[1723735298729,3.4286,145.83,145.79,52.9294]
[1723735298929,8.2274,145.89,145.79,49.5]
[1723735298930,6.98,145.89,145.79,49.5]
[1723735299328,6.98,145.89,145.8,3.4292]
[1723735299329,0.05213597,145.81,145.8,3.4292]
[1723735299734,0.05213597,145.81,145.79,49.54463381]
[1723735299929,3.4286,145.83,145.79,52.9294]
[1723735300129,6.98,145.89,145.79,49.5]
[1723735300438,6.98,145.89,145.84,49.5]
[1723735300735,13.897,145.95,145.84,49.5]
[1723735300929,6.917,145.95,145.85,3.4279]
[1723735301128,6.917,145.95,145.84,49.5]
[1723735301323,3.4265,145.92,145.87,3.4273]
[1723735301529,52.1142,145.97,145.87,3.4273]
[1723735301530,6.917,145.96,145.87,3.4273]
[1723735301830,3.4269,145.9,145.86,52.9276]
[1723735302032,6.917,145.96,145.86,49.5]
[1723735302331,0.04732202,145.88,145.84,49.5]
[1723735302535,0.04732202,145.88,145.84,56.48]
[1723735303140,6.917,145.96,145.84,59.85264864]
[1723735303633,6.917,145.96,145.85,3.4278]
[1723735303937,0.05131354,145.87,145.86,41.15]
[1723735304237,2.6142,145.97,145.86,41.15]
[1723735304428,2.6142,145.97,145.9,41.15]
[1723735304824,3.4265,145.92,145.9,41.15]
[1723735305032,2.6142,145.97,145.9,41.15]
[1723735305230,3.4258,145.95,145.91,3.4266]
[1723735305433,1.2731,146.0,145.9,41.15]
[1723735305634,0.04352609,145.92,145.9,41.20106102]
[1723735305833,1.2731,146.0,145.91,3.4266]
[1723735306034,1.2731,146.0,145.9,41.15]
[1723735306629,42.4231,146.0,145.9,41.15]
[1723735306826,42.4231,146.0,145.88,41.15]
[1723735307034,42.4231,146.0,145.88,47.87]
[1723735307235,41.15,145.98,145.86,41.15]
[1723735307632,41.15,145.98,145.94,0.04937377]
[1723735307833,3.4256,145.95,145.94,0.04937377]
[1723735308632,0.05178966,145.96,145.91,41.15]
[1723735309228,0.05178966,145.96,145.86,41.15]
[1723735309640,3.4272,145.89,145.86,41.15]
[1723735309840,41.15,145.95,145.84,41.15]
[1723735310041,6.72,145.94,145.93,6.042e-05]
[1723735310236,16.9979,145.94,145.93,6.042e-05]
[1723735310745,3.4275,145.88,145.84,41.15]
[1723735311439,0.04838545,145.87,145.85,0.05237252]
[1723735312740,3.4277,145.86,145.85,0.05237252]
[1723735314145,3.4277,145.86,145.76,41.15]
[1723735314146,41.15,145.86,145.76,41.15]
[1723735314544,3.4294,145.79,145.76,41.15]
[1723735315138,41.15,145.86,145.76,41.15]
[1723735315342,4.98526566,145.85,145.76,41.15]
[1723735315542,41.15,145.86,145.76,41.15]
[1723735315543,3.4293,145.8,145.76,41.15]
[1723735315744,41.15,145.86,145.76,41.15]
[1723735316147,0.04634254,145.79,145.76,0.0497959]
[1723735316648,0.04634254,145.79,145.76,3.4797959]
[1723735316851,0.04634254,145.79,145.76,0.0497959]
[1723735317247,2.6236,145.84,145.75,41.15]
[1723735317641,0.05195873,145.79,145.76,0.04627194]
[1723735318254,0.05195873,145.79,145.78,41.15]
[1723735319149,0.05195873,145.79,145.76,0.04627194]
[1723735319949,3.4298,145.78,145.76,0.04627194]
[1723735320142,0.05195873,145.79,145.76,0.04627194]
[1723735320751,3.4299,145.77,145.76,0.04627194]
[1723735321950,0.05195873,145.79,145.7,41.15]
[1723735321951,3.4313,145.71,145.7,41.15]
[1723735322153,0.05195873,145.79,145.7,41.15]
[1723735322351,0.05195873,145.79,145.72,41.15]
[1723735322749,8.262,145.81,145.72,41.15]
[1723735323151,3.4308,145.74,145.72,41.15]
[1723735323456,8.262,145.81,145.72,41.15]
[1723735324056,3.4301,145.76,145.75,0.04866333]
[1723735324246,0.05208185,145.78,145.75,0.04866333]
[1723735324653,0.05208185,145.78,145.76,44.58]
[1723735325158,0.05208185,145.78,145.76,41.15]
[1723735325664,0.05208185,145.78,145.75,0.04866333]
[1723735325846,3.43,145.77,145.75,0.04866333]
[1723735326844,3.4301,145.76,145.75,0.04866333]
[1723735327356,3.4299,145.77,145.75,0.04866333]
[1723735327553,0.05208185,145.78,145.75,0.04866333]
[1723735328357,3.4301,145.76,145.75,0.04866333]
[1723735329658,1.3528,145.77,145.67,41.15]
[1723735330256,41.15,145.76,145.67,41.15]
[1723735330852,1.2556,145.75,145.65,41.15]
[1723735331162,6.42,145.74,145.65,41.15]
[1723735331352,47.57,145.74,145.65,41.15]
[1723735331850,6.42,145.74,145.7,0.04398636]
[1723735332062,0.04496958,145.73,145.7,0.04398636]
[1723735332467,3.4313,145.71,145.7,0.04398636]
[1723735333455,3.4313,145.71,145.65,41.15]
[1723735333456,3.4326,145.66,145.62,41.15]
[1723735333656,0.04496958,145.73,145.62,41.15]
[1723735333860,0.04496958,145.73,145.58,1.2425]
[1723735333861,41.15,145.7,145.58,1.2425]
[1723735334164,41.15,145.7,145.58,41.15]
[1723735334555,0.04496958,145.73,145.62,41.15]
[1723735334859,6.917,145.71,145.62,41.15]
[1723735335963,3.433,145.64,145.62,41.15]
[1723735336160,3.433,145.64,145.6,41.15]
[1723735336362,10.30241789,145.7,145.58,41.15]
[1723735336659,3.4338,145.61,145.58,41.15]
[1723735336857,44.61782157,145.68,145.58,41.15]
[1723735337166,44.57108371,145.68,145.58,41.15]
[1723735337557,3.4339,145.6,145.58,41.15]
[1723735337757,44.57108371,145.68,145.56,47.57]
[1723735337960,44.57108371,145.68,145.63,0.0453215]
[1723735337961,6.42,145.66,145.63,0.0453215]
[1723735338265,3.4329,145.64,145.63,0.0453215]
[1723735338763,3.4344,145.58,145.52,1.2425]
[1723735339062,41.15,145.64,145.53,41.15]
[1723735339571,41.15,145.64,145.53,44.5854]
[1723735340063,41.15,145.64,145.53,41.15]
[1723735340462,3.4345,145.58,145.53,41.15]
[1723735340667,41.15,145.64,145.53,41.15]
[1723735340864,41.15,145.62,145.52,3.4356]
[1723735341065,0.04812131,145.6,145.57,0.04884158]
[1723735341459,3.4345,145.58,145.57,0.04884158]
[1723735344070,0.04812131,145.6,145.57,0.04884158]
[1723735344567,3.4343,145.58,145.57,0.04884158]
[1723735345869,41.19812131,145.6,145.48,44.5721002]
[1723735345870,3.4357,145.53,145.48,44.5721002]
[1723735346071,41.15,145.58,145.48,41.15]
[1723735346563,3.436,145.51,145.48,41.15]
[1723735346771,44.60450797,145.58,145.48,41.15]
[1723735346963,41.15,145.56,145.47,3.40571742]
[1723735347358,41.15,145.56,145.46,41.15]
[1723735347665,3.4361,145.51,145.46,41.15]
[1723735347864,0.04872031,145.53,145.46,44.5351017]
[1723735348269,6.42,145.55,145.46,41.15]
[1723735349074,6.42,145.55,145.45,3.39737812]
[1723735349075,0.04423248,145.51,145.48,41.15]
[1723735349571,0.04423248,145.51,145.5,44.5862]
[1723735349765,6.42,145.57,145.49,3.39256695]
[1723735349970,3.4357,145.53,145.48,41.15]
[1723735350174,0.050792,145.52,145.48,41.15]
[1723735350473,0.050792,145.52,145.5,41.15]
[1723735350666,0.050792,145.52,145.51,3.436]
[1723735351071,3.4352,145.55,145.51,3.436]
[1723735351372,1.3303,145.59,145.52,3.4356]
[1723735351561,0.04548439,145.53,145.52,3.4356]
[1723735351967,6.42,145.61,145.5,41.15]
[1723735352165,1.307,145.63,145.55,41.15]
[1723735352867,7.7421,145.64,145.55,41.15]
[1723735353577,3.4342,145.59,145.55,41.15]
[1723735353777,48.8921,145.64,145.53,41.15]
[1723735353981,48.8921,145.64,145.54,3.4352]
[1723735354170,0.04962274,145.6,145.58,0.04402631]
[1723735354479,3.4341,145.59,145.58,0.04402631]
[1723735355379,41.15,145.59,145.5,1.2701]
[1723735355972,3.4353,145.54,145.5,1.2701]
[1723735356169,41.15,145.57,145.48,6.42]
[1723735356381,41.15,145.57,145.46,41.15]
[1723735356876,41.15,145.57,145.47,3.49457193]
[1723735357076,41.15,145.57,145.47,3.50590902]
[1723735357281,41.15,145.57,145.5,3.436]
[1723735357481,41.15,145.57,145.46,44.5109317]
[1723735357670,3.4354,145.54,145.49,3.4363]
[1723735358077,0.04676614,145.53,145.49,3.4363]
[1723735358276,0.04676614,145.53,145.48,41.15]
[1723735358889,0.04676614,145.53,145.51,3.4359]
[1723735359280,0.04676614,145.53,145.52,3.4358]
[1723735359979,0.04676614,145.53,145.51,6.91562072]
[1723735360287,0.04676614,145.53,145.49,3.42680505]
[1723735360480,0.04676614,145.53,145.48,41.15]
[1723735360782,0.04676614,145.53,145.5,41.15]
[1723735360985,0.04676614,145.53,145.52,3.4358]
[1723735361375,0.04676614,145.53,145.45,6.42]
[1723735361583,0.04676614,145.53,145.5,3.4361]
[1723735362084,0.04676614,145.53,145.48,41.15]
[1723735362777,0.04676614,145.53,145.48,44.5866]
[1723735362978,3.4359,145.52,145.48,44.5866]
[1723735363184,0.04676614,145.53,145.45,50.7274]
[1723735363374,0.04676614,145.53,145.45,47.29]
[1723735363880,3.4363,145.5,145.46,3.4371]
[1723735364284,3.4367,145.49,145.45,54.21891067]
[1723735364681,7.4022,145.56,145.45,50.78161067]
[1723735364883,7.4022,145.56,145.47,41.15]
[1723735365086,0.05234595,145.49,145.47,41.15]
[1723735365681,7.4022,145.56,145.47,41.15]
[1723735365877,3.4352,145.55,145.5,41.15]
[1723735366079,47.29,145.61,145.52,41.15]
[1723735366486,2.6553,145.62,145.52,41.15]
[1723735366889,0.05011632,145.58,145.52,41.15]
[1723735367186,3.4348,145.57,145.52,44.5856]
[1723735367384,3.4348,145.57,145.52,41.15]
[1723735367681,0.05011632,145.58,145.54,41.15]
[1723735367887,0.05011632,145.58,145.54,44.51642847]
[1723735368289,3.48451632,145.58,145.54,47.95152847]
[1723735368482,0.05011632,145.58,145.54,44.51642847]
[1723735368884,3.48441632,145.58,145.55,3.4349]
[1723735369083,0.05011632,145.58,145.55,3.4349]
[1723735369890,0.05011632,145.58,145.54,47.95152847]
[1723735370482,3.48461632,145.58,145.54,44.5851]
[1723735370893,0.05011632,145.58,145.52,42.4008]
[1723735371097,0.05011632,145.58,145.52,1.2508]
[1723735371499,0.05011632,145.58,145.52,4.6865]
[1723735371802,0.05011632,145.58,145.52,42.4008]
[1723735372003,0.05011632,145.58,145.53,3.4353]
[1723735372303,0.05011632,145.58,145.52,42.4008]
[1723735372701,0.05011632,145.58,145.53,3.4353]
[1723735372901,0.05011632,145.58,145.54,41.15]
[1723735373198,0.05011632,145.58,145.56,3.4347]
[1723735373397,0.05011632,145.58,145.55,3.35325638]
[1723735373798,0.05011632,145.58,145.56,3.4347]
[1723735375097,0.05011632,145.58,145.55,3.35325638]
[1723735375305,0.05011632,145.58,145.54,41.15]
[1723735375801,3.4346,145.57,145.53,3.49350236]
[1723735376304,0.05011632,145.58,145.53,3.49350236]
[1723735377006,0.05011632,145.58,145.52,42.4008]
[1723735377202,0.05011632,145.58,145.52,4.6864]
[1723735377409,3.4354,145.54,145.51,6.14]
[1723735377706,0.05011632,145.58,145.47,42.4021]
[1723735377898,3.4357,145.53,145.48,6.14]
[1723735378208,1.39371632,145.58,145.48,6.14]
[1723735378403,3.4355,145.54,145.48,6.14]
[1723735378700,1.3436,145.58,145.48,6.14]
[1723735378907,1.3436,145.58,145.5,3.4361]
[1723735379106,3.4358,145.52,145.48,6.14]
[1723735379304,3.48596531,145.52,145.49,3.4363]
[1723735379605,3.48596531,145.52,145.48,6.14]
[1723735379606,0.05016531,145.52,145.48,6.14]
[1723735380009,0.05016531,145.52,145.45,50.78161067]
[1723735380396,0.05016531,145.52,145.47,41.15]
[1723735380801,3.4362,145.5,145.47,41.15]
[1723735381112,3.4362,145.5,145.47,44.5868]
[1723735381404,3.4365,145.49,145.45,50.78161067]
[1723735381613,3.4365,145.49,145.46,3.4371]
[1723735381908,3.4365,145.49,145.45,50.78161067]
[1723735382107,3.4367,145.48,145.45,54.21891067]
[1723735382307,3.4367,145.48,145.45,50.78161067]
[1723735382611,3.4366,145.49,145.45,50.78161067]
[1723735383315,0.04687119,145.48,145.46,3.4371]
[1723735383508,3.48357119,145.48,145.45,50.78161067]
[1723735383706,0.04687119,145.48,145.45,3.49161067]
[1723735384010,0.04687119,145.48,145.44,3.4376]
[1723735384415,0.04687119,145.48,145.44,6.85548873]
[1723735384814,0.04687119,145.48,145.43,44.5878]
[1723735385009,3.4373,145.46,145.43,44.5878]
[1723735385204,0.04687119,145.48,145.44,3.4374]
[1723735385910,0.04687119,145.48,145.43,41.15]
[1723735385911,0.04687119,145.48,145.4,6.14]
[1723735386214,3.4378,145.44,145.4,6.14]
[1723735386407,0.04687119,145.48,145.4,6.14]
[1723735386607,3.438,145.43,145.39,1.2816]
[1723735387008,3.4375,145.45,145.38,41.15]
[1723735387211,0.04687119,145.48,145.38,41.15]
[1723735387414,0.04687119,145.48,145.38,46.99]
[1723735387711,4.0353,145.5,145.41,3.4381]
[1723735388213,41.15,145.49,145.4,3.4385]
[1723735388413,41.15,145.49,145.38,41.15]
[1723735388414,0.04331089,145.44,145.38,41.15]
[1723735388808,0.04331089,145.44,145.42,3.4379]
[1723735389003,0.04331089,145.44,145.4,41.15]
[1723735389206,0.04331089,145.44,145.42,41.15]
[1723735389516,4.0353,145.5,145.42,41.15]
[1723735389705,2.684,145.5,145.42,41.15]
[1723735389908,3.4371,145.47,145.44,3.4374]
[1723735390617,3.4368,145.48,145.45,3.4373]
[1723735390914,3.4368,145.48,145.42,41.15]
[1723735391306,0.04738649,145.47,145.45,41.15]
[1723735391920,0.04738649,145.47,145.44,3.39906052]
[1723735392105,3.48428649,145.47,145.44,0.04600982]